DEPARTMENT,ENTITY,DOCUMENT DATE,VENDOR NAME,EXPENSE TYPE,EXPENSE AREA,TRANSACTION NUMBER,AMOUNT,TRANSACTION DESCRIPTION
DEPARTMENT OF HEALTH                              ,SOUTH CENTRAL AMBULANCE NHS FOUNDATION TRUST                                ,26/03/2020,CHESS CYBERSECURITY                                              ,IT,ICT ,1288305,"57,706.80",MALWARE & RANSOMWARE
DEPARTMENT OF HEALTH                              ,SOUTH CENTRAL AMBULANCE NHS FOUNDATION TRUST                                ,31/03/2020,CHURCHILL CONTRACT SERVICES LTD                                  ,MAKE READY SERVICES,CLINICAL SERVICES ,1288484,"284,127.49",MAKE READY SERVICES YEAR 5 FEB
DEPARTMENT OF HEALTH                              ,SOUTH CENTRAL AMBULANCE NHS FOUNDATION TRUST                                ,30/03/2020,J.TOMLINSON - INTEGRATED BUILDING SOLUTIONS                      ,BUILDING MAINT EXTERNAL,"FINANCE, ESTATES AND PROCUREMENT ",1288219,"173,054.90",BUILDING MAINTENANCE CONTRACT
DEPARTMENT OF HEALTH                              ,SOUTH CENTRAL AMBULANCE NHS FOUNDATION TRUST                                ,05/03/2020,EUROPEAN ELECTRONIQUE LTD                                        ,IT,ICT ,1279666,"31,344.90",DATA LINES RENTAL & CALLS
DEPARTMENT OF HEALTH                              ,SOUTH CENTRAL AMBULANCE NHS FOUNDATION TRUST                                ,18/12/2019,KPMG LLP                                                         ,CONSULTANCY SERVICE,OPERATIONS ,1281873,"30,780.00",DEMAND RESEARCH
DEPARTMENT OF HEALTH                              ,SOUTH CENTRAL AMBULANCE NHS FOUNDATION TRUST                                ,29/02/2020,MEDI4 AMBULANCE SERVICES LTD                                     ,PTS PRIVATE PROVIDERS,NON EMERGENCY SERVICES ,1281919,"42,514.19",FEBRUARY PP HOURS
DEPARTMENT OF HEALTH                              ,SOUTH CENTRAL AMBULANCE NHS FOUNDATION TRUST                                ,23/02/2020,MEDI4 AMBULANCE SERVICES LTD                                     ,PTS PRIVATE PROVIDERS,NON EMERGENCY SERVICES ,1281920,"44,065.36",FEBRUARY PP HOURS
DEPARTMENT OF HEALTH                              ,SOUTH CENTRAL AMBULANCE NHS FOUNDATION TRUST                                ,02/03/2020,F.A.S.T. AMBULANCE SERVICE LTD                                   ,PTS PRIVATE PROVIDERS,NON EMERGENCY SERVICES ,1281921,"36,951.86",MARCH PP HOURS
DEPARTMENT OF HEALTH                              ,SOUTH CENTRAL AMBULANCE NHS FOUNDATION TRUST                                ,16/03/2020,CRANE & STAPLES                                                  ,BUILDING MAINT EXTERNAL,"FINANCE, ESTATES AND PROCUREMENT ",1276719,"2,000,000.00",MK HUB CONSTRUCTION FEES       
DEPARTMENT OF HEALTH                              ,SOUTH CENTRAL AMBULANCE NHS FOUNDATION TRUST                                ,15/03/2020,BRISTOL AMBULANCE E.M.S                                          ,PRIVATE AMBULANCE PROVIDERS,OPERATIONS ,1279010,"29,458.92",MARCH PP HOURS
DEPARTMENT OF HEALTH                              ,SOUTH CENTRAL AMBULANCE NHS FOUNDATION TRUST                                ,15/03/2020,CRG CLINICAL SERVICES LTD                                        ,PRIVATE AMBULANCE PROVIDERS,OPERATIONS ,1279013,"76,836.74",MARCH PP HOURS
DEPARTMENT OF HEALTH                              ,SOUTH CENTRAL AMBULANCE NHS FOUNDATION TRUST                                ,31/03/2020,SOUTH CENTRAL FLEET SERVICES LTD                                 ,VEHICLE MODIFICATION,OPERATIONS ,1288479,"63,221.53",LIVERY COST
DEPARTMENT OF HEALTH                              ,SOUTH CENTRAL AMBULANCE NHS FOUNDATION TRUST                                ,24/03/2020,H MONFARED (BUILDERS) LTD                                        ,BUILDING MAINT EXTERNAL,"FINANCE, ESTATES AND PROCUREMENT ",1288369,"58,974.48",READING REFURBISHMENT
DEPARTMENT OF HEALTH                              ,SOUTH CENTRAL AMBULANCE NHS FOUNDATION TRUST                                ,15/03/2020,ELITE EVENT MEDICAL SERVICES LTD                                 ,PRIVATE AMBULANCE PROVIDERS,OPERATIONS ,1279011,"30,633.64",MARCH PP HOURS
DEPARTMENT OF HEALTH                              ,SOUTH CENTRAL AMBULANCE NHS FOUNDATION TRUST                                ,15/03/2020,MEDI4 AMBULANCE SERVICES LTD                                     ,PTS PRIVATE PROVIDERS,NON EMERGENCY SERVICES ,1288347,"43,749.42",MARCH PP HOURS
DEPARTMENT OF HEALTH                              ,SOUTH CENTRAL AMBULANCE NHS FOUNDATION TRUST                                ,16/03/2020,STREAMLINE (KENT) LTD                                            ,PTS PRIVATE PROVIDERS,NON EMERGENCY SERVICES ,1288349,"41,679.00",MARCH PP HOURS
DEPARTMENT OF HEALTH                              ,SOUTH CENTRAL AMBULANCE NHS FOUNDATION TRUST                                ,18/03/2020,F.A.S.T. AMBULANCE SERVICE LTD                                   ,PTS PRIVATE PROVIDERS,NON EMERGENCY SERVICES ,1288346,"35,472.86",MARCH PP HOURS
DEPARTMENT OF HEALTH                              ,SOUTH CENTRAL AMBULANCE NHS FOUNDATION TRUST                                ,15/03/2020,POLARIS MEDICAL SERVICES LTD                                     ,PRIVATE AMBULANCE PROVIDERS,OPERATIONS ,1279016,"143,192.90",MARCH PP HOURS
DEPARTMENT OF HEALTH                              ,SOUTH CENTRAL AMBULANCE NHS FOUNDATION TRUST                                ,27/02/2020,BERKSHIRE HEALTHCARE NHS FOUNDATION TRUST                        , TEMPS CLINICAL,OPERATIONS ,1267816,"31,868.00",111 TV IUC GP COSTS 19-20      
DEPARTMENT OF HEALTH                              ,SOUTH CENTRAL AMBULANCE NHS FOUNDATION TRUST                                ,10/02/2020,EUROPEAN ELECTRONIQUE LTD                                        ,TELEPHONE EQUIPMENT PURCHASE,OPERATIONS ,1269206,"31,344.90",DATA LINES RENTAL & CALLS
DEPARTMENT OF HEALTH                              ,SOUTH CENTRAL AMBULANCE NHS FOUNDATION TRUST                                ,03/02/2020,ELITE MEDICAL AND AMBULANCE SERVICE LTD                          ,PTS PRIVATE PROVIDERS,NON EMERGENCY SERVICES ,1267805,"37,088.78",JANUARY PP HOURS
DEPARTMENT OF HEALTH                              ,SOUTH CENTRAL AMBULANCE NHS FOUNDATION TRUST                                ,11/03/2020,HM REVENUE & CUSTOMS                                             ,PAYE/NI,CORPORATE,1272931,"2,839,890.15",PAYE/NI FEB 2020               
DEPARTMENT OF HEALTH                              ,SOUTH CENTRAL AMBULANCE NHS FOUNDATION TRUST                                ,11/03/2020,HM REVENUE & CUSTOMS                                             ,APPRENTICESHIP LEVY,CORPORATE,1272932,"49,043.00",APPRENTICESHIP LEVY FEB 2020   
DEPARTMENT OF HEALTH                              ,SOUTH CENTRAL AMBULANCE NHS FOUNDATION TRUST                                ,10/03/2020,SOUTH CENTRAL FLEET SERVICES LTD                                 ,VEHICLE LEASING,OPERATIONS ,1272784,"112,560.00",VEHICLE LEASE COSTS
DEPARTMENT OF HEALTH                              ,SOUTH CENTRAL AMBULANCE NHS FOUNDATION TRUST                                ,10/03/2020,SOUTH CENTRAL FLEET SERVICES LTD                                 ,VEHICLE LEASING,OPERATIONS ,1272786,"104,671.50",VEHICLE LEASE COSTS
DEPARTMENT OF HEALTH                              ,SOUTH CENTRAL AMBULANCE NHS FOUNDATION TRUST                                ,10/03/2020,SOUTH CENTRAL FLEET SERVICES LTD                                 ,VEHICLE LEASING,OPERATIONS ,1272791,"164,135.14",VEHICLE LEASE COSTS
DEPARTMENT OF HEALTH                              ,SOUTH CENTRAL AMBULANCE NHS FOUNDATION TRUST                                ,10/03/2020,SOUTH CENTRAL FLEET SERVICES LTD                                 ,FLEET SERVICES,OPERATIONS ,1272793,"77,162.40",VEHICLE LEASE COSTS
DEPARTMENT OF HEALTH                              ,SOUTH CENTRAL AMBULANCE NHS FOUNDATION TRUST                                ,10/03/2020,SOUTH CENTRAL FLEET SERVICES LTD                                 ,FLEET SERVICES,OPERATIONS ,1274318,"270,142.40",VEHICLE LEASE COSTS
DEPARTMENT OF HEALTH                              ,SOUTH CENTRAL AMBULANCE NHS FOUNDATION TRUST                                ,22/03/2020,BRISTOL AMBULANCE E.M.S                                          ,PRIVATE AMBULANCE PROVIDERS,OPERATIONS ,1284426,"34,827.60",MARCH PP HOURS
DEPARTMENT OF HEALTH                              ,SOUTH CENTRAL AMBULANCE NHS FOUNDATION TRUST                                ,22/03/2020,CRG CLINICAL SERVICES LTD                                        ,PRIVATE AMBULANCE PROVIDERS,OPERATIONS ,1284429,"69,765.38",MARCH PP HOURS
DEPARTMENT OF HEALTH                              ,SOUTH CENTRAL AMBULANCE NHS FOUNDATION TRUST                                ,25/03/2020,BEELINE PROPERTIES LTD                                           ,RENTS,"FINANCE, ESTATES AND PROCUREMENT ",1276100,"44,850.00",RENT - BONE LANE EDUCATION FACILITY
DEPARTMENT OF HEALTH                              ,SOUTH CENTRAL AMBULANCE NHS FOUNDATION TRUST                                ,22/03/2020,ELITE EVENT MEDICAL SERVICES LTD                                 ,PRIVATE AMBULANCE PROVIDERS,OPERATIONS ,1284428,"35,327.47",MARCH PP HOURS
DEPARTMENT OF HEALTH                              ,SOUTH CENTRAL AMBULANCE NHS FOUNDATION TRUST                                ,22/03/2020,MEDI4 AMBULANCE SERVICES LTD                                     ,PTS PRIVATE PROVIDERS,NON EMERGENCY SERVICES ,1288483,"44,531.71",MARCH PP HOURS
DEPARTMENT OF HEALTH                              ,SOUTH CENTRAL AMBULANCE NHS FOUNDATION TRUST                                ,23/03/2020,ELITE MEDICAL AND AMBULANCE SERVICE LTD                          ,PTS PRIVATE PROVIDERS,NON EMERGENCY SERVICES ,1288345,"36,632.50",MARCH PP HOURS
DEPARTMENT OF HEALTH                              ,SOUTH CENTRAL AMBULANCE NHS FOUNDATION TRUST                                ,23/03/2020,STREAMLINE (KENT) LTD                                            ,PTS PRIVATE PROVIDERS,NON EMERGENCY SERVICES ,1288350,"43,038.60",MARCH PP HOURS
DEPARTMENT OF HEALTH                              ,SOUTH CENTRAL AMBULANCE NHS FOUNDATION TRUST                                ,23/03/2020,PTS-247 LTD                                                      ,PTS PRIVATE PROVIDERS,NON EMERGENCY SERVICES ,1288348,"111,528.00",FEBRUARY PP HOURS
DEPARTMENT OF HEALTH                              ,SOUTH CENTRAL AMBULANCE NHS FOUNDATION TRUST                                ,18/03/2020,UNIVERSITY OF CUMBRIA                                            ,EXTERNAL COURSE FEES/TRAINING,CLINICAL SERVICES ,1288293,"500,000.00",BSC PATHWAY LEVELS 5 AND 6
DEPARTMENT OF HEALTH                              ,SOUTH CENTRAL AMBULANCE NHS FOUNDATION TRUST                                ,22/03/2020,POLARIS MEDICAL SERVICES LTD                                     ,PRIVATE AMBULANCE PROVIDERS,OPERATIONS ,1284430,"153,682.84",MARCH PP HOURS
DEPARTMENT OF HEALTH                              ,SOUTH CENTRAL AMBULANCE NHS FOUNDATION TRUST                                ,12/02/2020,WORKMAN-NURSLING                                                 ,RENTS,"FINANCE, ESTATES AND PROCUREMENT ",1266830,"48,750.00",RENT - NURSLING
DEPARTMENT OF HEALTH                              ,SOUTH CENTRAL AMBULANCE NHS FOUNDATION TRUST                                ,24/02/2020,TEAM PREVENT UK LTD                                              ,OCCUP HEALTH NON NHS,HUMAN RESOURCES ,1273741,"105,548.88",OCCUPATIONAL HEALTH SERVICE PROVISION
DEPARTMENT OF HEALTH                              ,SOUTH CENTRAL AMBULANCE NHS FOUNDATION TRUST                                ,31/01/2020,118 LTD (T/AS CONDUIT GLOBAL)                                    ,EXTERNAL CONTRACT,OPERATIONS ,1272785,"212,676.46",JANUARY 2020 111 CHARGES       
DEPARTMENT OF HEALTH                              ,SOUTH CENTRAL AMBULANCE NHS FOUNDATION TRUST                                ,16/02/2020,MEDI4 AMBULANCE SERVICES LTD                                     ,PTS PRIVATE PROVIDERS,NON EMERGENCY SERVICES ,1272736,"44,235.90",FEBRUARY PP HOURS
DEPARTMENT OF HEALTH                              ,SOUTH CENTRAL AMBULANCE NHS FOUNDATION TRUST                                ,03/02/2020, (WOKING CARS) SA TAXIS LTD                                      ,TAXI HIRE - PTS,NON EMERGENCY SERVICES ,1272723,"33,350.29",MARCH PP HOURS
DEPARTMENT OF HEALTH                              ,SOUTH CENTRAL AMBULANCE NHS FOUNDATION TRUST                                ,31/01/2020,PHL - PARTNERING HEALTH LTD                                      ,EXTERNAL CONTRACT,OPERATIONS ,1272788,"33,329.62",DECEMBER 111 CHARGES
DEPARTMENT OF HEALTH                              ,SOUTH CENTRAL AMBULANCE NHS FOUNDATION TRUST                                ,19/03/2020,ALLSTAR FUEL CARD SERVICES- DD ONLY                              ,DIESEL,OPERATIONS,1277558,"97,473.36",FUEL
DEPARTMENT OF HEALTH                              ,SOUTH CENTRAL AMBULANCE NHS FOUNDATION TRUST                                ,17/03/2020,SOUTH CENTRAL FLEET SERVICES LTD                                 ,FLEET SERVICES,OPERATIONS ,1278925,"154,327.71",SLA FLEET ADMIN SERVICES 19-20 
DEPARTMENT OF HEALTH                              ,SOUTH CENTRAL AMBULANCE NHS FOUNDATION TRUST                                ,06/03/2020,OXFORD UNIVERSITY HOSPITALS NHS FOUNDATION TRUST                 ,EXTERNAL CONSULTANCY,CLINICAL SERVICES ,1288429,"34,233.63",MEDICAL DIRECTOR 
DEPARTMENT OF HEALTH                              ,SOUTH CENTRAL AMBULANCE NHS FOUNDATION TRUST                                ,06/03/2020,OXFORD UNIVERSITY HOSPITALS NHS FOUNDATION TRUST                 ,EXTERNAL CONSULTANCY,CLINICAL SERVICES ,1288430,"34,233.63",MEDICAL DIRECTOR 
DEPARTMENT OF HEALTH                              ,SOUTH CENTRAL AMBULANCE NHS FOUNDATION TRUST                                ,05/03/2020,JLT--QBE-STANDING ORDER                                          ,ANNUAL MOTOR INSURANCE PREMIUM,OPERATIONS,1090628,"65,785.00",MOTOR FLEET INSURANCE
DEPARTMENT OF HEALTH                              ,SOUTH CENTRAL AMBULANCE NHS FOUNDATION TRUST                                ,19/03/2020,BERKSHIRE HEALTHCARE NHS FOUNDATION TRUST                        ,TEMPS CLINICAL,OPERATIONS ,1281870,"31,868.00",111 TV IUC GP COSTS 19-20      
DEPARTMENT OF HEALTH                              ,SOUTH CENTRAL AMBULANCE NHS FOUNDATION TRUST                                ,04/03/2020,COMPLETE NETWORKS LTD                                            ,IT,ICT ,1286209,"34,140.00",MICROWAVE LINK 
DEPARTMENT OF HEALTH                              ,SOUTH CENTRAL AMBULANCE NHS FOUNDATION TRUST                                ,08/03/2020,BRISTOL AMBULANCE E.M.S                                          ,PRIVATE AMBULANCE PROVIDERS,OPERATIONS ,1275923,"26,244.72",MARCH PP HOURS
DEPARTMENT OF HEALTH                              ,SOUTH CENTRAL AMBULANCE NHS FOUNDATION TRUST                                ,05/03/2020,ALLSTAR FUEL CARD SERVICES- DD ONLY                              ,DIESEL,OPERATIONS,1269348,"97,432.19",FUEL
DEPARTMENT OF HEALTH                              ,SOUTH CENTRAL AMBULANCE NHS FOUNDATION TRUST                                ,26/02/2020,PENTACOM NETWORKS LTD                                            ,IT,ICT ,1286222,"30,000.00",TELECOMS CONSULTING SERVICES 01/04/19 - 31/03/2020
DEPARTMENT OF HEALTH                              ,SOUTH CENTRAL AMBULANCE NHS FOUNDATION TRUST                                ,08/03/2020,CRG CLINICAL SERVICES LTD                                        ,PRIVATE AMBULANCE PROVIDERS,OPERATIONS ,1275925,"77,484.04",MARCH PP HOURS
DEPARTMENT OF HEALTH                              ,SOUTH CENTRAL AMBULANCE NHS FOUNDATION TRUST                                ,08/03/2020,ELITE EVENT MEDICAL SERVICES LTD                                 ,PRIVATE AMBULANCE PROVIDERS,OPERATIONS ,1275924,"32,807.52",MARCH PP HOURS
DEPARTMENT OF HEALTH                              ,SOUTH CENTRAL AMBULANCE NHS FOUNDATION TRUST                                ,08/03/2020,MEDI4 AMBULANCE SERVICES LTD                                     ,PTS PRIVATE PROVIDERS,NON EMERGENCY SERVICES ,1281916,"47,623.72",MARCH PP HOURS
DEPARTMENT OF HEALTH                              ,SOUTH CENTRAL AMBULANCE NHS FOUNDATION TRUST                                ,09/03/2020,STREAMLINE (KENT) LTD                                            ,PTS PRIVATE PROVIDERS,NON EMERGENCY SERVICES ,1284510,"43,127.40",MARCH PP HOURS
DEPARTMENT OF HEALTH                              ,SOUTH CENTRAL AMBULANCE NHS FOUNDATION TRUST                                ,11/03/2020,F.A.S.T. AMBULANCE SERVICE LTD                                   ,PTS PRIVATE PROVIDERS,NON EMERGENCY SERVICES ,1281922,"36,951.84",MARCH PP HOURS
DEPARTMENT OF HEALTH                              ,SOUTH CENTRAL AMBULANCE NHS FOUNDATION TRUST                                ,08/03/2020,POLARIS MEDICAL SERVICES LTD                                     ,PRIVATE AMBULANCE PROVIDERS,OPERATIONS ,1275927,"147,775.26",MARCH PP HOURS
DEPARTMENT OF HEALTH                              ,SOUTH CENTRAL AMBULANCE NHS FOUNDATION TRUST                                ,31/01/2020,PHL - PARTNERING HEALTH LTD                                      ,EXTERNAL CONSULTANCY,OPERATIONS ,1286206,"25,061.00",111 CHARGES
DEPARTMENT OF HEALTH                              ,SOUTH CENTRAL AMBULANCE NHS FOUNDATION TRUST                                ,09/03/2020,J.TOMLINSON - INTEGRATED BUILDING SOLUTIONS                      ,BUILDING MAINT EXTERNAL,"FINANCE, ESTATES AND PROCUREMENT ",1272780,"93,201.34",BUILDING MAINTENANCE CONTRACT
DEPARTMENT OF HEALTH                              ,SOUTH CENTRAL AMBULANCE NHS FOUNDATION TRUST                                ,17/03/2020,SOUTH CENTRAL FLEET SERVICES LTD                                 ,FLEET SERVICES,OPERATIONS ,1278922,"88,006.62",VEHICLE LEASE COSTS
DEPARTMENT OF HEALTH                              ,SOUTH CENTRAL AMBULANCE NHS FOUNDATION TRUST                                ,17/03/2020,SOUTH CENTRAL FLEET SERVICES LTD                                 ,FLEET SERVICES,OPERATIONS ,1278923,"128,121.75",VEHICLE LEASE COSTS
DEPARTMENT OF HEALTH                              ,SOUTH CENTRAL AMBULANCE NHS FOUNDATION TRUST                                ,17/03/2020,SOUTH CENTRAL FLEET SERVICES LTD                                 ,FLEET SERVICES,OPERATIONS ,1278924,"196,049.52",ANNUAL SITE COST
DEPARTMENT OF HEALTH                              ,SOUTH CENTRAL AMBULANCE NHS FOUNDATION TRUST                                ,28/02/2020,SOFTWARE ENTERPRISES (UK) LTD                                    ,IT,ICT ,1269212,"118,800.00",ANNUAL GRS SUBSCRIPTIONS
DEPARTMENT OF HEALTH                              ,SOUTH CENTRAL AMBULANCE NHS FOUNDATION TRUST                                ,22/02/2020,SIEMENS FINANCIAL SERVICES                                       ,VEHICLE LEASING,NON EMERGENCY SERVICES ,1266908,"34,690.75",VEHICLE LEASE COSTS
DEPARTMENT OF HEALTH                              ,SOUTH CENTRAL AMBULANCE NHS FOUNDATION TRUST                                ,24/02/2020,SIEMENS FINANCIAL SERVICES                                       ,VEHICLE LEASING,NON EMERGENCY SERVICES ,1266909,"36,688.50",VEHICLE LEASE COSTS
DEPARTMENT OF HEALTH                              ,SOUTH CENTRAL AMBULANCE NHS FOUNDATION TRUST                                ,28/02/2020,SIEMENS FINANCIAL SERVICES                                       ,VEHICLE LEASING,NON EMERGENCY SERVICES ,1266910,"36,269.22",VEHICLE LEASE COSTS
DEPARTMENT OF HEALTH                              ,SOUTH CENTRAL AMBULANCE NHS FOUNDATION TRUST                                ,29/02/2020,BRISTOL AMBULANCE E.M.S                                          ,PRIVATE AMBULANCE PROVIDERS,OPERATIONS ,1272789,"27,379.24",FEBRUARY PP HOURS
DEPARTMENT OF HEALTH                              ,SOUTH CENTRAL AMBULANCE NHS FOUNDATION TRUST                                ,01/03/2020,SOCIETE GENERALE EQUIPMENT FINANCE LTD                           ,VEHICLE LEASING,NON EMERGENCY SERVICES ,1266911,"102,222.78",VEHICLE LEASE COSTS
DEPARTMENT OF HEALTH                              ,SOUTH CENTRAL AMBULANCE NHS FOUNDATION TRUST                                ,04/03/2020,OVINGTON PARK PROPERTIES 2013  LTD                               ,RENTS,"FINANCE, ESTATES AND PROCUREMENT ",1272759,"57,000.00",RENT - SEHRC
DEPARTMENT OF HEALTH                              ,SOUTH CENTRAL AMBULANCE NHS FOUNDATION TRUST                                ,26/11/2018,NHS PROPERTY SERVICES LTD                                        ,RENTS,"FINANCE, ESTATES AND PROCUREMENT ",1277730,"72,544.50",DORKING PTS       
DEPARTMENT OF HEALTH                              ,SOUTH CENTRAL AMBULANCE NHS FOUNDATION TRUST                                ,29/02/2020,118 LTD (T/AS CONDUIT GLOBAL)                                    ,EXTERNAL CONTRACT,OPERATIONS ,1272800,"217,551.72",FEBRUARY 2020 111 CHARGES      
DEPARTMENT OF HEALTH                              ,SOUTH CENTRAL AMBULANCE NHS FOUNDATION TRUST                                ,29/02/2020,CRG CLINICAL SERVICES LTD                                        ,PRIVATE AMBULANCE PROVIDERS,OPERATIONS ,1274313,"68,588.44",FEBRUARY PP HOURS
DEPARTMENT OF HEALTH                              ,SOUTH CENTRAL AMBULANCE NHS FOUNDATION TRUST                                ,04/03/2020,F & C UK PROPERTY FUND ICVC                                      ,RENTS,OPERATIONS ,1276099,"70,332.00",RENT - WERC
DEPARTMENT OF HEALTH                              ,SOUTH CENTRAL AMBULANCE NHS FOUNDATION TRUST                                ,29/02/2020,ELITE EVENT MEDICAL SERVICES LTD                                 ,PRIVATE AMBULANCE PROVIDERS,OPERATIONS ,1272790,"30,825.02",JANUARY PP HOURS
DEPARTMENT OF HEALTH                              ,SOUTH CENTRAL AMBULANCE NHS FOUNDATION TRUST                                ,24/02/2020,ELITE MEDICAL AND AMBULANCE SERVICE LTD                          ,PTS PRIVATE PROVIDERS,NON EMERGENCY SERVICES ,1271651,"39,342.77",FEBRUARY PP HOURS
DEPARTMENT OF HEALTH                              ,SOUTH CENTRAL AMBULANCE NHS FOUNDATION TRUST                                ,24/02/2020,STREAMLINE (KENT) LTD                                            ,PTS PRIVATE PROVIDERS,NON EMERGENCY SERVICES ,1266866,"43,611.60",FEBRUARY PP HOURS
DEPARTMENT OF HEALTH                              ,SOUTH CENTRAL AMBULANCE NHS FOUNDATION TRUST                                ,02/03/2020,STREAMLINE (KENT) LTD                                            ,PTS PRIVATE PROVIDERS,NON EMERGENCY SERVICES ,1272734,"42,477.60",MARCH PP HOURS
DEPARTMENT OF HEALTH                              ,SOUTH CENTRAL AMBULANCE NHS FOUNDATION TRUST                                ,25/02/2020,F.A.S.T. AMBULANCE SERVICE LTD                                   ,PTS PRIVATE PROVIDERS,NON EMERGENCY SERVICES ,1272737,"36,998.36",FEBRUARY PP HOURS
DEPARTMENT OF HEALTH                              ,SOUTH CENTRAL AMBULANCE NHS FOUNDATION TRUST                                ,26/02/2020,EVERBRIDGE EUROPE LTD                                            ,SUBSCRIPTIONS,OPERATIONS ,1266780,"35,089.20",INCIDENT MANAGEMENT SOLUTION CONTRACT
DEPARTMENT OF HEALTH                              ,SOUTH CENTRAL AMBULANCE NHS FOUNDATION TRUST                                ,26/02/2020,EVERBRIDGE EUROPE LTD                                            ,SUBSCRIPTIONS,OPERATIONS ,1266781,"32,490.00",INCIDENT MANAGEMENT SOLUTION CONTRACT
DEPARTMENT OF HEALTH                              ,SOUTH CENTRAL AMBULANCE NHS FOUNDATION TRUST                                ,29/02/2020,POLARIS MEDICAL SERVICES LTD                                     ,PRIVATE AMBULANCE PROVIDERS,OPERATIONS ,1272799,"129,293.74",JANUARY PP HOURS
DEPARTMENT OF HEALTH                              ,SOUTH CENTRAL AMBULANCE NHS FOUNDATION TRUST                                ,29/02/2020,PHL - PARTNERING HEALTH LTD                                      ,EXTERNAL CONTRACT,OPERATIONS ,1272801,"35,232.77",FEBRURARY 111 CHARGES        
DEPARTMENT OF HEALTH                              ,SOUTH CENTRAL AMBULANCE NHS FOUNDATION TRUST                                ,28/02/2020,CBRE LTD (CONSULTANCY)                                           ,BUILDING MAINT EXTERNAL,"FINANCE, ESTATES AND PROCUREMENT ",1273716,"28,596.09",LPG GENERATOR REPLACEMENT 
DEPARTMENT OF HEALTH                              ,SOUTH CENTRAL AMBULANCE NHS FOUNDATION TRUST                                ,26/03/2020,ALLSTAR FUEL CARD SERVICES- DD ONLY                              ,DIESEL,OPERATIONS,1281972,"89,506.21",FUEL
DEPARTMENT OF HEALTH                              ,SOUTH CENTRAL AMBULANCE NHS FOUNDATION TRUST                                ,12/03/2020,ALLSTAR FUEL CARD SERVICES- DD ONLY                              ,DIESEL,OPERATIONS,1273579,"102,443.21",FUEL
